Workbook

Sheet 地市名称
A1: 2023年第三季度公共就业服务机构市场职业供求状况
A3: 项 目 | B3: 代码 | C3: 需求人数 | D3: 求职人数 | E3: 求人倍率
A4: 甲 | B4: 乙 | C4: 1 | D4: 2 | E4: 3
A5: 本期有效数 | B5: 1 | C5: =C11 -> 7393 | D5: =E71 -> 5697 | E5: =IFERROR(C5/D5,0) -> 1.30
A7: 续表一
A8: 项 目 | B8: 代码 | C8: 按产业分组的需求人数
C9: 需求人数 | D9: 所占比重（%）
A10: 甲 | B10: 乙 | C10: 4 | D10: 5
A11: 合计 | B11: 2 | C11: =C12+C13+C14 -> 7393 | D11: =SUM(D12:D14) -> 100.00%
A12: 第一产业 | B12: 3 | C12: =C21-C22 -> 1 | D12: =IFERROR(C12/$C$11,0) -> 0.01%
A13: 第二产业 | B13: 4 | C13: =C23-C24+C25-C26+C27+C28 -> 2425 | D13: =IFERROR(C13/$C$11,0) -> 32.80%
A14: 第三产业 | B14: 5 | C14: =C22+C24+C26+C29+C30+C31+C32+C33+C34+C35+C36+C37+C38+C39+C40+C41+C42+C43 -> 4967 | D14: =IFERROR(C14/$C$11,0) -> 67.19%
A16: 续表二
A17: 项 目 | B17: 代码 | C17: 按行业分组的需求人数
C18: 需求人数 | D18: 所占比重（%）
A19: 甲 | B19: 乙 | C19: 6 | D19: 7
A20: 合计 | B20: 6 | C20: =SUM(C21:C43)-C22-C24-C26 -> 7393 | D20: =SUM(D21:D43)-D26-D24-D22 -> 100.00%
A21: 农、林、牧、渔业 | B21: 7 | C21: 2 | D21: =IFERROR(C21/$C$11,0) -> 0.03%
A22: 其中，农、林、牧、渔专业及辅助性活动 | B22: 8 | C22: 1 | D22: =IFERROR(C22/$C$11,0) -> 0.01%
A23: 采矿业 | B23: 9 | C23: 0 | D23: 0.00%
A24: 其中，开采专业及辅助性活动 | B24: 10 | C24: 0 | D24: 0.00%
A25: 制造业 | B25: 11 | C25: 4125 | D25: 55.80%
A26: 其中，金属制品、机械和设备修理业 | B26: 12 | C26: 1897 | D26: 25.66%
A27: 电力、热力、燃气及水生产和供应业 | B27: 13 | C27: 132 | D27: 1.79%
A28: 建筑业 | B28: 14 | C28: 65 | D28: 0.88%
A29: 批发和零售业 | B29: 15 | C29: 115 | D29: 1.56%
A30: 交通运输、仓储和邮政业 | B30: 16 | C30: 170 | D30: 2.30%
A31: 住宿和餐饮业 | B31: 17 | C31: 1820 | D31: 24.62%
A32: 信息传输、软件和信息技术服务业 | B32: 18 | C32: 391 | D32: 5.29%
A33: 金融业 | B33: 19 | C33: 47 | D33: 0.64%
A34: 房地产业 | B34: 20 | C34: 241 | D34: 3.26%
A35: 租赁和商务服务业 | B35: 21 | C35: 50 | D35: 0.68%
A36: 科学研究和技术服务业 | B36: 22 | C36: 0 | D36: 0.00%
A37: 水利、环境和公共设施管理业 | B37: 23 | C37: 0 | D37: 0.00%
A38: 居民服务、修理和其他服务业 | B38: 24 | C38: 127 | D38: 1.72%
A39: 教育 | B39: 25 | C39: 60 | D39: 0.81%
A40: 卫生和社会工作 | B40: 26 | C40: 0 | D40: 0.00%
A41: 文化、体育和娱乐业 | B41: 27 | C41: 48 | D41: 0.65%
A42: 公共管理、社会保障和社会组织 | B42: 28 | C42: 0 | D42: 0.00%
A43: 国际组织 | B43: 29 | C43: 0 | D43: 0.00%
A45: 续表三
A46: 项 目 | B46: 代码 | C46: 按用人单位性质分组的需求人数
C47: 需求人数 | D47: 所占比重（%）
A48: 甲 | B48: 乙 | C48: 8 | D48: 9
A49: 合 计 | B49: 30 | C49: =C50+C63+C64+C65 -> 7393 | D49: =D50+D63+D64+D65 -> 100.00%
A50: 企 业 | B50: 31 | C50: =C51+C60+C61+C62 -> 7393 | D50: =IFERROR(C50/$C$11,0) -> 100.00%
A51: 内资企业 | B51: 32 | C51: =C52+C53+C54+C55+C56+C57+C58+C59 -> 5096 | D51: =IFERROR(C51/$C$11,0) -> 68.93%
A52: 国有企业 | B52: 33 | C52: 15 | D52: 0.20%
A53: 集体企业 | B53: 34 | C53: 0 | D53: 0.00%
A54: 股份合作企业 | B54: 35 | C54: 19 | D54: 0.26%
A55: 联营企业 | B55: 36 | C55: 9 | D55: 0.12%
A56: 有限责任公司 | B56: 37 | C56: 3278 | D56: 44.34%
A57: 股份有限公司 | B57: 38 | C57: 601 | D57: 8.13%
A58: 私营企业 | B58: 39 | C58: 1148 | D58: 15.53%
A59: 其他企业 | B59: 40 | C59: 26 | D59: 0.35%
A60: 港、澳、台商投资企业 | B60: 41 | C60: 109 | D60: 1.47%
A61: 外商投资企业 | B61: 42 | C61: 29 | D61: 0.39%
A62: 个体经营 | B62: 43 | C62: 2159 | D62: 29.20%
A63: 事 业 | B63: 44 | C63: 0 | D63: 0.00%
A64: 机 关 | B64: 45 | C64: 0 | D64: 0.00%
A65: 其 他 | B65: 46 | C65: 0 | D65: 0.00%
A67: 续表四
A68: 项 目 | B68: 代码 | C68: 按职业分组的供求人数（职业大类）
C69: 需求人数 | D69: 所占比重（%） | E69: 求职人数 | F69: 所占比重（%） | G69: 求人倍率
A70: 甲 | B70: 乙 | C70: 10 | D70: 11 | E70: 12 | F70: 13 | G70: 14
A71: 合计 | B71: 47 | C71: =SUM(C72:C78) -> 7393 | D71: =SUM(D72:D78) -> 100.00% | E71: =SUM(E72:E79) -> 5697 | F71: =SUM(F72:F79) -> 100.00% | G71: =IFERROR(C71/E71,0) -> 1.30
A72: 单位负责人 | B72: 48 | C72: 16 | D72: =IFERROR(C72/$C$11,0) -> 0.22% | E72: 12 | F72: =IFERROR(E72/$E$71,0) -> 0.21% | G72: =IFERROR(C72/(E72+$E$79*F72),0) -> 1.33
A73: 专业技术人员 | B73: 49 | C73: 663 | D73: =IFERROR(C73/$C$11,0) -> 8.97% | E73: 582 | F73: =IFERROR(E73/$E$71,0) -> 10.22% | G73: =IFERROR(C73/(E73+$E$79*F73),0) -> 1.14
A74: 办事人员和有关人员 | B74: 50 | C74: 1829 | D74: 24.74% | E74: 1769 | F74: 31.05% | G74: 1.03
A75: 社会生产服务和生活服务人员 | B75: 51 | C75: 1753 | D75: 23.71% | E75: 1322 | F75: 23.21% | G75: 1.33
A76: 农林牧渔业生产及辅助人员 | B76: 52 | C76: 1 | D76: 0.01% | E76: 1 | F76: 0.02% | G76: 1.00
A77: 生产制造及有关人员 | B77: 53 | C77: 1677 | D77: 22.68% | E77: 1147 | F77: 20.13% | G77: 1.46
A78: 其他 | B78: 54 | C78: 1454 | D78: 19.67% | E78: 864 | F78: 15.17% | G78: 1.68
A79: 无要求 | B79: 55 | C79: - | D79: - | F79: 0.00% | G79: -
A81: 续表五
A82: 项 目 | B82: 代码 | C82: 职业代码 | D82: 需求大于求职缺口最大的前二十个职业（职业细类）
D83: 需求人数 | E83: 求职人数 | F83: 缺口数 | G83: 求人倍率
A84: 甲 | B84: 乙 | C84: 15 | D84: 16 | E84: 17 | F84: 18 | G84: 19
A85: 普工 | B85: 56 | C85: 6279800 | D85: 1374 | E85: 687 | F85: =D85-E85 -> 687 | G85: =IFERROR(D85/E85,0) -> 2.00
A86: 业务员 | B86: 57 | C86: 4010299 | D86: 457 | E86: 228 | F86: 229 | G86: =IFERROR(D86/E86,0) -> 2.00
A87: 营业员 | B87: 58 | C87: 4010100 | D87: 57 | E87: 28 | F87: 29 | G87: 2.04
A88: 质检员 | B88: 59 | C88: 6262100 | D88: 50 | E88: 27 | F88: 23 | G88: 1.85
A89: 仓管员 | B89: 60 | C89: 4020199 | D89: 45 | E89: 21 | F89: 24 | G89: 2.14
B90: 61 | F90: 0 | G90: 0.00
B91: 62 | F91: 0 | G91: 0.00
B92: 63 | F92: 0 | G92: 0.00
A95: 续表六
A96: 项 目 | B96: 代码 | C96: 职业代码 | D96: 需求小于求职缺口最大的前二十个职业（职业细类）
D97: 需求人数 | E97: 求职人数 | F97: 缺口数 | G97: 求人倍率
A98: 甲 | B98: 乙 | C98: 20 | D98: 21 | E98: 22 | F98: 23 | G98: 24
A99: 文 员 | B99: 76 | C99: 3010200 | D99: 261 | E99: 522 | F99: =D99-E99 -> -261 | G99: =IFERROR(D99/E99,0) -> 0.50
A100: 会计 | B100: 77 | C100: 2060300 | D100: 331 | E100: 663 | F100: -332 | G100: =IFERROR(D100/E100,0) -> 0.50
A101: 驾驶员 | B101: 78 | C101: 6240100 | D101: 83 | E101: 167 | F101: -84 | G101: 0.50
A102: 跟单员 | B102: 79 | C102: 3010199 | D102: 75 | E102: 150 | F102: -75 | G102: 0.50
A103: 电工 | B103: 80 | C103: 6240100 | D103: 65 | E103: 130 | F103: -65 | G103: 0.50
B104: 81 | F104: =D104-E104 -> 0 | G104: 0.00
B105: 82 | F105: 0 | G105: 0.00
B106: 83 | F106: 0 | G106: 0.00
B107: 84 | F107: 0 | G107: 0.00
B108: 85 | F108: =D108-E108 -> 0 | G108: =IFERROR(D108/E108,0) -> 0.00
B109: 86 | F109: 0 | G109: 0.00
B110: 87 | F110: 0 | G110: 0.00
B111: 88 | F111: 0 | G111: 0.00
B112: 89 | F112: 0 | G112: 0.00
B113: 90 | F113: 0 | G113: 0.00
B114: 91 | F114: 0 | G114: 0.00
B115: 92 | F115: 0 | G115: 0.00
B116: 93 | F116: 0 | G116: 0.00
A118: 续表七
A119: 项 目 | B119: 代码 | C119: 按求职人员类别分组的求职人数
C120: 求职人数 | D120: 所占比重（%）
A121: 甲 | B121: 乙 | C121: 25 | D121: 26
A122: 合计 | B122: 96 | C122: =SUM(C123:C130)-C124 -> 5697 | D122: =SUM(D123:D130)-D124 -> 100.00%
A123: 新成长失业青年 | B123: 97 | C123: 1408 | D123: =IFERROR(C123/$C$122,0) -> 24.71%
A124: 其中：应届高校毕业生 | B124: 98 | C124: 1260 | D124: 22.12%
A125: 失业人员 | B125: 99 | C125: 513 | D125: 9.00%
A126: 在业人员 | B126: 100 | C126: 691 | D126: 12.13%
A127: 退休人员 | B127: 101 | C127: 56 | D127: 0.98%
A128: 在学人员 | B128: 102 | C128: 803 | D128: 14.10%
A129: 本市农村求职人员 | B129: 103 | C129: 2214 | D129: 38.86%
A130: 外地户籍求职人员 | B130: 104 | C130: 12 | D130: 0.21%
A132: 续表八
A133: 项 目 | B133: 代码 | C133: 劳动力供求人数比较（按性别分组）
C134: 需求人数 | D134: 所占比重（%） | E134: 求职人数 | F134: 所占比重（%） | G134: 求人倍率
A135: 甲 | B135: 乙 | C135: 27 | D135: 28 | E135: 29 | F135: 30 | G135: 31
A136: 合计 | B136: 105 | C136: -- | D136: -- | E136: =SUM(E137:E138) -> 5697 | F136: =SUM(F137:F138) -> 100.00% | G136: --
A137: 男 | B137: 106 | C137: -- | D137: -- | E137: 3275 | F137: =IFERROR(E137/$E$136,0) -> 57.49% | G137: --
A138: 女 | B138: 107 | C138: -- | D138: -- | E138: 2422 | F138: =IFERROR(E138/$E$136,0) -> 42.51% | G138: --
A139: 无要求 | B139: 108 | C139: -- | D139: -- | E139: -- | F139: -- | G139: --
A143: 续表九
A144: 项 目 | B144: 代码 | C144: 劳动力供求人数比较（按年龄分组）
C145: 需求人数 | D145: 需求比重（%） | E145: 求职人数 | F145: 求职比重（%） | G145: 求人倍率
A146: 甲 | B146: 乙 | C146: 32 | D146: 33 | E146: 34 | F146: 35 | G146: 36
A147: 合计 | B147: 109 | C147: =SUM(C148:C152) -> 7393 | D147: =SUM(D148:D152) -> 100.00% | E147: =SUM(E148:E151) -> 5697 | F147: =SUM(F148:F151) -> 100.00% | G147: =IF(E147=0,0,C147/E147) -> 1.30
A148: 16-24岁 | B148: 110 | C148: 2591 | D148: =IFERROR(C148/$C$171,0) -> 35.05% | E148: 2293 | F148: =IFERROR(E148/$E$147,0) -> 40.25% | G148: =IFERROR((C148+$C$152*F148)/E148,0) -> 1.23
A149: 25-34岁 | B149: 111 | C149: 1995 | D149: =IFERROR(C149/$C$171,0) -> 26.98% | E149: 1592 | F149: =IFERROR(E149/$E$147,0) -> 27.94% | G149: =IFERROR((C149+$C$152*F149)/E149,0) -> 1.35
A150: 35-44岁 | B150: 112 | C150: 1297 | D150: =IFERROR(C150/$C$171,0) -> 17.54% | E150: 1024 | F150: =IFERROR(E150/$E$147,0) -> 17.97% | G150: =IFERROR((C150+$C$152*F150)/E150,0) -> 1.36
A151: 45岁以上 | B151: 113 | C151: 953 | D151: =IFERROR(C151/$C$171,0) -> 12.89% | E151: 788 | F151: =IFERROR(E151/$E$147,0) -> 13.83% | G151: =IFERROR((C151+$C$152*F151)/E151,0) -> 1.31
A152: 无要求 | B152: 114 | C152: 557 | D152: =IFERROR(C152/$C$171,0) -> 7.53% | E152: -- | F152: -- | G152: --
A154: 续表十
A155: 项 目 | B155: 代码 | C155: 劳动力供求人数比较（按文化程度分组）
C156: 需求人数 | D156: 需求比重（%） | E156: 求职人数 | F156: 求职比重（%） | G156: 求人倍率
A157: 甲 | B157: 乙 | C157: 37 | D157: 38 | E157: 39 | F157: 40 | G157: 41
A158: 合计 | B158: 115 | C158: =SUM(C159:C165)-C161 -> 7393 | D158: =SUM(D159:D165)-D161 -> 100.00% | E158: =SUM(E159:E164)-E161 -> 5697 | F158: =SUM(F159:F164)-F161 -> 100.00% | G158: =IF(E158=0,0,C158/E158) -> 1.30
A159: 初中及以下 | B159: 116 | C159: 1577 | D159: =IFERROR(C159/$C$171,0) -> 21.33% | E159: 1470 | F159: =IFERROR(E159/$E$158,0) -> 25.80% | G159: =IFERROR((C159+$C$165*F159)/E159,0) -> 1.21
A160: 高中 | B160: 117 | C160: 2424 | D160: 32.79% | E160: 1974 | F160: 34.65% | G160: 1.37
A161: 其中：职高、技校、中专 | B161: 118 | C161: 1858 | D161: 25.13% | E161: 1153 | F161: 20.24% | G161: 1.75
A162: 大专 | B162: 119 | C162: 2108 | D162: 28.51% | E162: 1879 | F162: 32.98% | G162: 1.26
A163: 大学 | B163: 120 | C163: 492 | D163: 6.65% | E163: 373 | F163: 6.55% | G163: 1.46
A164: 硕士以上 | B164: 121 | C164: 3 | D164: 0.04% | E164: 1 | F164: 0.02% | G164: 3.14
A165: 无要求 | B165: 122 | C165: 789 | D165: 10.67% | E165: -- | F165: -- | G165: --
A167: 续表十一
A168: 项 目 | B168: 代码 | C168: 劳动力供求人数比较（按技术等级分组）
C169: 需求人数 | D169: 需求比重（%） | E169: 求职人数 | F169: 求职比重（%） | G169: 求人倍率
A170: 甲 | B170: 乙 | C170: 42 | D170: 43 | E170: 44 | F170: 45 | G170: 46
A171: 合计 | B171: 123 | C171: =SUM(C172:C181) -> 7393 | D171: =SUM(D172:D181) -> 100.00% | E171: =SUM(E172:E180) -> 5697 | F171: =SUM(F172:F180) -> 100.00% | G171: =IF(E171=0,0,C171/E171) -> 1.30
A172: 职业资格五级(初级技能) | B172: 124 | C172: 516 | D172: =IFERROR(C172/$C$171,0) -> 6.98% | E172: 358 | F172: =IFERROR(E172/$E$158,0) -> 6.28% | G172: =IFERROR((C172+$C$181*F172)/E172,0) -> 2.50
A173: 职业资格四级(中级技能) | B173: 125 | C173: 294 | D173: =IFERROR(C173/$C$171,0) -> 3.98% | E173: 166 | F173: =IFERROR(E173/$E$158,0) -> 2.91% | G173: =IFERROR((C173+$C$181*F173)/E173,0) -> 2.83
A174: 职业资格三级(高级技能) | B174: 126 | C174: 6 | D174: =IFERROR(C174/$C$171,0) -> 0.08% | E174: 4 | F174: 0.07% | G174: 2.56
A175: 职业资格二级(技师) | B175: 127 | C175: 4 | D175: =IFERROR(C175/$C$171,0) -> 0.05% | E175: 1 | F175: 0.02% | G175: 5.06
A176: 职业资格一级(高级技师) | B176: 128 | C176: 5 | D176: =IFERROR(C176/$C$171,0) -> 0.07% | E176: 2 | F176: 0.04% | G176: 3.56
A177: 初级职称 | B177: 129 | C177: 521 | D177: 7.05% | E177: 362 | F177: 6.35% | G177: 2.50
A178: 中级职称 | B178: 130 | C178: 14 | D178: 0.19% | E178: 9 | F178: 0.16% | G178: 2.61
A179: 高级职称 | B179: 131 | C179: 3 | D179: 0.04% | E179: 1 | F179: 0.02% | G179: 4.06
A180: 无技术等级或职称 | B180: 132 | C180: —— | D180: -- | E180: 4794 | F180: 84.15% | G180: --
A181: 无要求 | B181: 133 | C181: 6030 | D181: =IFERROR(C181/$C$171,0) -> 81.56% | E181: -- | F181: -- | G181: --

Sheet 汇总表
A1: 供求总体人数 | D1: 按产业分组的需求人数 | G1: 按行业分组的需求人数 | AD1: 按用人单位性质分组的需求人数 | AT1: 按职业分组的供求人数 | BH1: 表6 需求大于求职缺口最大的前二十个职业（职业细类） | DQ1: 表7 需求小于求职缺口最大的前二十个职业（职业细类） | FX1: 表8 按求职人员类别分组的求职人数 | GF1: 表9 按性别分组的供求人数 | GK1: 表10 按年龄分组的供求人数 | GT1: 表11 按文化程度分组的供求人数 | HG1: 表12 按技术等级分组的供求人数
A2: 1 | B2: 2 | C2: 3 | D2: 4 | E2: 5 | F2: 6 | G2: 7 | H2: 8 | I2: 9 | J2: 10 | K2: 11 | L2: 12 | M2: 13 | N2: 14 | O2: 15 | P2: 16 | Q2: 17 | R2: 18 | S2: 19 | T2: 20 | U2: 21 | V2: 22 | W2: 23 | X2: 24 | Y2: 25 | Z2: 26 | AA2: 27 | AB2: 28 | AC2: 29 | AD2: 30 | AE2: 31 | AF2: 32 | AG2: 33 | AH2: 34 | AI2: 35 | AJ2: 36 | AK2: 37 | AL2: 38 | AM2: 39 | AN2: 40 | AO2: 41 | AP2: 42 | AQ2: 43 | AR2: 44 | AS2: 45 | AT2: 46 | AU2: 47 | AV2: 48 | AW2: 49 | AX2: 50 | AY2: 51 | AZ2: 52 | BA2: 53 | BB2: 54 | BC2: 55 | BD2: 56 | BE2: 57 | BF2: 58 | BG2: 59 | BH2: 60 | BI2: 61 | BJ2: 62 | BK2: 63 | BL2: 64 | BM2: 65 | BN2: 66 | BO2: 67 | BP2: 68 | BQ2: 69 | BR2: 70 | BS2: 71 | BT2: 72 | BU2: 73 | BV2: 74 | BW2: 75 | BX2: 76 | BY2: 77 | BZ2: 78 | CA2: 79 | CB2: 80 | CC2: 81 | CD2: 82 | CE2: 83 | CF2: 84 | CG2: 85 | CH2: 86 | CI2: 87 | CJ2: 88 | CK2: 89 | CL2: 90 | CM2: 91 | CN2: 92 | CO2: 93 | CP2: 94 | CQ2: 95 | CR2: 96 | CS2: 97 | CT2: 98 | CU2: 99 | CV2: 100 | CW2: 101 | CX2: 102 | CY2: 103 | CZ2: 104 | DA2: 105 | DB2: 106 | DC2: 107 | DD2: 108 | DE2: 109 | DF2: 110 | DG2: 111 | DH2: 112 | DI2: 113 | DJ2: 114 | DK2: 115 | DL2: 116 | DM2: 117 | DN2: 118 | DO2: 119 | DP2: 120 | DQ2: 121 | DR2: 122 | DS2: 123 | DT2: 124 | DU2: 125 | DV2: 126 | DW2: 127 | DX2: 128 | DY2: 129 | DZ2: 130 | EA2: 131 | EB2: 132 | EC2: 133 | ED2: 134 | EE2: 135 | EF2: 136 | EG2: 137 | EH2: 138 | EI2: 139 | EJ2: 140 | EK2: 141 | EL2: 142 | EM2: 143 | EN2: 144 | EO2: 145 | EP2: 146 | EQ2: 147 | ER2: 148 | ES2: 149 | ET2: 150 | EU2: 151 | EV2: 152 | EW2: 153 | EX2: 154 | EY2: 155 | EZ2: 156 | FA2: 157 | FB2: 158 | FC2: 159 | FD2: 160 | FE2: 161 | FF2: 162 | FG2: 163 | FH2: 164 | FI2: 165 | FJ2: 166 | FK2: 167 | FL2: 168 | FM2: 169 | FN2: 170 | FO2: 171 | FP2: 172 | FQ2: 173 | FR2: 174 | FS2: 175 | FT2: 176 | FU2: 177 | FV2: 178 | FW2: 179 | FX2: 180 | FY2: 181 | FZ2: 182 | GA2: 183 | GB2: 184 | GC2: 185 | GD2: 186 | GE2: 187 | GF2: 188 | GG2: 189 | GH2: 190 | GI2: 191 | GJ2: 192 | GK2: 193 | GL2: 194 | GM2: 195 | GN2: 196 | GO2: 197 | GP2: 198 | GQ2: 199 | GR2: 200 | GS2: 201 | GT2: 202 | GU2: 203 | GV2: 204 | GW2: 205 | GX2: 206 | GY2: 207 | GZ2: 208 | HA2: 209 | HB2: 210 | HC2: 211 | HD2: 212 | HE2: 213 | HF2: 214 | HG2: 215 | HH2: 216 | HI2: 217 | HJ2: 218 | HK2: 219 | HL2: 220 | HM2: 221 | HN2: 222 | HO2: 223 | HP2: 224 | HQ2: 225 | HR2: 226 | HS2: 227 | HT2: 228 | HU2: 229 | HV2: 230 | HW2: 231 | HX2: 232
A3: =地市名称!C3 -> 需求人数 | B3: =地市名称!D3 -> 求职人数 | C3: =地市名称!E3 -> 求人倍率 | D3: =地市名称!A12 -> 第一产业 | E3: =地市名称!A13 -> 第二产业 | F3: =地市名称!A14 -> 第三产业 | G3: =地市名称!A21 -> 农、林、牧、渔业 | H3: 其中，农、林、牧、渔专业及辅助性活动 | I3: =地市名称!A23 -> 采矿业 | J3: 其中，开采专业及辅助性活动 | K3: =地市名称!A25 -> 制造业 | L3: 其中，金属制品、机械和设备修理业 | M3: =地市名称!A27 -> 电力、热力、燃气及水生产和供应业 | N3: =地市名称!A28 -> 建筑业 | O3: =地市名称!A29 -> 批发和零售业 | P3: =地市名称!A30 -> 交通运输、仓储和邮政业 | Q3: =地市名称!A31 -> 住宿和餐饮业 | R3: =地市名称!A32 -> 信息传输、软件和信息技术服务业 | S3: =地市名称!A33 -> 金融业 | T3: =地市名称!A34 -> 房地产业 | U3: =地市名称!A35 -> 租赁和商务服务业 | V3: =地市名称!A36 -> 科学研究和技术服务业 | W3: =地市名称!A37 -> 水利、环境和公共设施管理业 | X3: =地市名称!A38 -> 居民服务、修理和其他服务业 | Y3: =地市名称!A39 -> 教育 | Z3: =地市名称!A40 -> 卫生和社会工作 | AA3: =地市名称!A41 -> 文化、体育和娱乐业 | AB3: =地市名称!A42 -> 公共管理、社会保障和社会组织 | AC3: =地市名称!A43 -> 国际组织 | AD3: =地市名称!A50 -> 企 业 | AE3: =地市名称!A51 -> 内资企业 | AF3: =地市名称!A52 -> 国有企业 | AG3: =地市名称!A53 -> 集体企业 | AH3: =地市名称!A54 -> 股份合作企业 | AI3: =地市名称!A55 -> 联营企业 | AJ3: =地市名称!A56 -> 有限责任公司 | AK3: =地市名称!A57 -> 股份有限公司 | AL3: =地市名称!A58 -> 私营企业 | AM3: =地市名称!A59 -> 其他企业 | AN3: =地市名称!A60 -> 港、澳、台商投资企业 | AO3: =地市名称!A61 -> 外商投资企业 | AP3: =地市名称!A62 -> 个体经营 | AQ3: =地市名称!A63 -> 事 业 | AR3: =地市名称!A64 -> 机 关 | AS3: =地市名称!A65 -> 其 他 | AT3: 单位负责人需求人数 | AU3: 单位负责人求职人数 | AV3: 专业技术人员需求人数 | AW3: 专业技术人员求职人数 | AX3: 办事人员和有关人员需求人数 | AY3: 办事人员和有关人员求职人数 | AZ3: 社会生产服务和生活服务人员需求人数 | BA3: 社会生产服务和生活服务人员求职人数 | BB3: 农林牧渔业生产及辅助人员需求人数 | BC3: 农林牧渔业生产及辅助人员求职人数 | BD3: 生产制造及有关人员需求人数 | BE3: 生产制造及有关人员求职人数 | BF3: 其他需求人数 | BG3: 其他求职人数 | BH3: 工种名称1 | BI3: 工种1需求人数 | BJ3: 工种1求职人数 | BK3: 工种名称2 | BL3: 工种2需求人数 | BM3: 工种2求职人数 | BN3: 工种名称3 | BO3: 工种3需求人数 | BP3: 工种3求职人数 | BQ3: 工种名称4 | BR3: 工种4需求人数 | BS3: 工种4求职人数 | BT3: 工种名称5 | BU3: 工种5需求人数 | BV3: 工种5求职人数 | BW3: 工种名称6 | BX3: 工种6需求人数 | BY3: 工种6求职人数 | BZ3: 工种名称7 | CA3: 工种7需求人数 | CB3: 工种7求职人数 | CC3: 工种名称8 | CD3: 工种8需求人数 | CE3: 工种8求职人数 | CF3: 工种名称9 | CG3: 工种9需求人数 | CH3: 工种9求职人数 | CI3: 工种名称10 | CJ3: 工种10需求人数 | CK3: 工种10求职人数 | CL3: 工种名称11 | CM3: 工种11需求人数 | CN3: 工种11求职人数 | CO3: 工种名称12 | CP3: 工种12需求人数 | CQ3: 工种12求职人数 | CR3: 工种名称13 | CS3: 工种13需求人数 | CT3: 工种13求职人数 | CU3: 工种名称14 | CV3: 工种14需求人数 | CW3: 工种14求职人数 | CX3: 工种名称15 | CY3: 工种15需求人数 | CZ3: 工种15求职人数 | DA3: 工种名称16 | DB3: 工种16需求人数 | DC3: 工种16求职人数 | DD3: 工种名称17 | DE3: 工种17需求人数 | DF3: 工种17求职人数 | DG3: 工种名称18 | DH3: 工种18需求人数 | DI3: 工种18求职人数 | DJ3: 工种名称19 | DK3: 工种19需求人数 | DL3: 工种19求职人数 | DM3: 工种名称20 | DN3: 工种20需求人数 | DO3: 工种20求职人数 | DP3: 工种名称1 | DQ3: 工种1需求人数 | DR3: 工种1求职人数 | DS3: 工种名称2 | DT3: 工种2需求人数 | DU3: 工种2求职人数 | DV3: 工种名称3 | DW3: 工种3需求人数 | DX3: 工种3求职人数 | DY3: 工种名称4 | DZ3: 工种4需求人数 | EA3: 工种4求职人数 | EB3: 工种名称5 | EC3: 工种5需求人数 | ED3: 工种5求职人数 | EE3: 工种名称6 | EF3: 工种6需求人数 | EG3: 工种6求职人数 | EH3: 工种名称7 | EI3: 工种7需求人数 | EJ3: 工种7求职人数 | EK3: 工种名称8 | EL3: 工种8需求人数 | EM3: 工种8求职人数 | EN3: 工种名称9 | EO3: 工种9需求人数 | EP3: 工种9求职人数 | EQ3: 工种名称10 | ER3: 工种10需求人数 | ES3: 工种10求职人数 | ET3: 工种名称11 | EU3: 工种11需求人数 | EV3: 工种11求职人数 | EW3: 工种名称12 | EX3: 工种12需求人数 | EY3: 工种12求职人数 | EZ3: 工种名称13 | FA3: 工种13需求人数 | FB3: 工种13求职人数 | FC3: 工种名称14 | FD3: 工种14需求人数 | FE3: 工种14求职人数 | FF3: 工种名称15 | FG3: 工种15需求人数 | FH3: 工种15求职人数 | FI3: 工种名称16 | FJ3: 工种16需求人数 | FK3: 工种16求职人数 | FL3: 工种名称17 | FM3: 工种17需求人数 | FN3: 工种17求职人数 | FO3: 工种名称18 | FP3: 工种18需求人数 | FQ3: 工种18求职人数 | FR3: 工种名称19 | FS3: 工种19需求人数 | FT3: 工种19求职人数 | FU3: 工种名称20 | FV3: 工种20需求人数 | FW3: 工种20求职人数 | FX3: =地市名称!A123 -> 新成长失业青年 | FY3: =地市名称!A124 -> 其中：应届高校毕业生 | FZ3: =地市名称!A125 -> 失业人员 | GA3: =地市名称!A126 -> 在业人员 | GB3: =地市名称!A127 -> 退休人员 | GC3: =地市名称!A128 -> 在学人员 | GD3: =地市名称!A129 -> 本市农村求职人员 | GE3: =地市名称!A130 -> 外地户籍求职人员 | GF3: 性别男需求人数 | GG3: 性别男求职人数 | GH3: 性别女需求人数 | GI3: 性别女求职人数 | GJ3: 性别无要求需求人数 | GK3: 年龄16-24岁需求人数 | GL3: 年龄16-24岁求职人数 | GM3: 年龄25-34岁需求人数 | GN3: 年龄25-34岁求职人数 | GO3: 年龄35-44岁需求人数 | GP3: 年龄35-44岁求职人数 | GQ3: 年龄45岁以上需求人数 | GR3: 年龄45岁以上求职人数 | GS3: 年龄无要求需求人数 | GT3: 初中及以下需求人数 | GU3: 初中及以下求职人数 | GV3: 高中需求人数 | GW3: 高中求职人数 | GX3: 其中：职高、技校、中专需求人数 | GY3: 其中：职高、技校、中专求职人数 | GZ3: 大专需求人数 | HA3: 大专求职人数 | HB3: 大学需求人数 | HC3: 大学求职人数 | HD3: 硕士以上需求人数 | HE3: 硕士以上求职人数 | HF3: 无要求需求人数 | HG3: 职业资格五级(初级技能)需求人数 | HH3: 职业资格五级(初级技能)求职人数 | HI3: 职业资格四级(中级技能)需求人数 | HJ3: 职业资格四级(中级技能)求职人数 | HK3: 职业资格三级(高级技能)需求人数 | HL3: 职业资格三级(高级技能)求职人数 | HM3: 职业资格二级(技师)需求人数 | HN3: 职业资格二级(技师)求职人数 | HO3: 职业资格一级(高级技师)需求人数 | HP3: 职业资格一级(高级技师)求职人数 | HQ3: 初级专业技术职务需求人数 | HR3: 初级专业技术职务求职人数 | HS3: 中级专业技术职务需求人数 | HT3: 中级专业技术职务求职人数 | HU3: 高级专业技术职务需求人数 | HV3: 高级专业技术职务求职人数 | HW3: 无技术等级或职称求职人数 | HX3: 技术等级无要求需求人数
A4: =地市名称!C5 -> 7393 | B4: =地市名称!D5 -> 5697 | C4: =A4/B4 -> 1.30 | D4: =地市名称!C12 -> 1 | E4: =地市名称!C13 -> 2425 | F4: =地市名称!C14 -> 4967 | G4: =地市名称!C21 -> 2 | H4: =地市名称!C22 -> 1 | I4: =地市名称!C23 -> 0 | J4: =地市名称!C24 -> 0 | K4: =地市名称!C25 -> 4125 | L4: =地市名称!C26 -> 1897 | M4: =地市名称!C27 -> 132 | N4: =地市名称!C28 -> 65 | O4: =地市名称!C29 -> 115 | P4: =地市名称!C30 -> 170 | Q4: =地市名称!C31 -> 1820 | R4: =地市名称!C32 -> 391 | S4: =地市名称!C33 -> 47 | T4: =地市名称!C34 -> 241 | U4: =地市名称!C35 -> 50 | V4: =地市名称!C36 -> 0 | W4: =地市名称!C37 -> 0 | X4: =地市名称!C38 -> 127 | Y4: =地市名称!C39 -> 60 | Z4: =地市名称!C40 -> 0 | AA4: =地市名称!C41 -> 48 | AB4: =地市名称!C42 -> 0 | AC4: =地市名称!C43 -> 0 | AD4: =地市名称!C50 -> 7393 | AE4: =地市名称!C51 -> 5096 | AF4: =地市名称!C52 -> 15 | AG4: =地市名称!C53 -> 0 | AH4: =地市名称!C54 -> 19 | AI4: =地市名称!C55 -> 9 | AJ4: =地市名称!C56 -> 3278 | AK4: =地市名称!C57 -> 601 | AL4: =地市名称!C58 -> 1148 | AM4: =地市名称!C59 -> 26 | AN4: =地市名称!C60 -> 109 | AO4: =地市名称!C61 -> 29 | AP4: =地市名称!C62 -> 2159 | AQ4: =地市名称!C63 -> 0 | AR4: =地市名称!C64 -> 0 | AS4: =地市名称!C65 -> 0 | AT4: =地市名称!C72 -> 16 | AU4: =地市名称!E72 -> 12 | AV4: =地市名称!C73 -> 663 | AW4: =地市名称!E73 -> 582 | AX4: =地市名称!C74 -> 1829 | AY4: =地市名称!E74 -> 1769 | AZ4: =地市名称!C75 -> 1753 | BA4: =地市名称!E75 -> 1322 | BB4: =地市名称!C76 -> 1 | BC4: =地市名称!E76 -> 1 | BD4: =地市名称!C77 -> 1677 | BE4: =地市名称!E77 -> 1147 | BF4: =地市名称!C78 -> 1454 | BG4: =地市名称!E78 -> 864 | BH4: =地市名称!A85 -> 普工 | BI4: =地市名称!D85 -> 1374 | BJ4: =地市名称!E85 -> 687 | BK4: =地市名称!A86 -> 业务员 | BL4: =地市名称!D86 -> 457 | BM4: =地市名称!E86 -> 228 | BN4: =地市名称!A87 -> 营业员 | BO4: =地市名称!D87 -> 57 | BP4: =地市名称!E87 -> 28 | BQ4: =地市名称!A88 -> 质检员 | BR4: =地市名称!D88 -> 50 | BS4: =地市名称!E88 -> 27 | BT4: =地市名称!A89 -> 仓管员 | BU4: =地市名称!D89 -> 45 | BV4: =地市名称!E89 -> 21 | BW4: =地市名称!A90 -> 0 | BX4: =地市名称!D90 -> 0 | BY4: =地市名称!E90 -> 0 | BZ4: =地市名称!A91 -> 0 | CA4: =地市名称!D91 -> 0 | CB4: =地市名称!E91 -> 0 | CC4: =地市名称!A92 -> 0 | CD4: =地市名称!D92 -> 0 | CE4: =地市名称!E92 -> 0 | CF4: =地市名称!#REF! ->  | CG4: =地市名称!#REF! ->  | CH4: =地市名称!#REF! ->  | CI4: =地市名称!#REF! ->  | CJ4: =地市名称!#REF! ->  | CK4: =地市名称!#REF! ->  | CL4: =地市名称!#REF! ->  | CM4: =地市名称!#REF! ->  | CN4: =地市名称!#REF! ->  | CO4: =地市名称!#REF! ->  | CP4: =地市名称!#REF! ->  | CQ4: =地市名称!#REF! ->  | CR4: =地市名称!#REF! ->  | CS4: =地市名称!#REF! ->  | CT4: =地市名称!#REF! ->  | CU4: =地市名称!#REF! ->  | CV4: =地市名称!#REF! ->  | CW4: =地市名称!#REF! ->  | CX4: =地市名称!#REF! ->  | CY4: =地市名称!#REF! ->  | CZ4: =地市名称!#REF! ->  | DA4: =地市名称!#REF! ->  | DB4: =地市名称!#REF! ->  | DC4: =地市名称!#REF! ->  | DD4: =地市名称!#REF! ->  | DE4: =地市名称!#REF! ->  | DF4: =地市名称!#REF! ->  | DG4: =地市名称!#REF! ->  | DH4: =地市名称!#REF! ->  | DI4: =地市名称!#REF! ->  | DJ4: =地市名称!#REF! ->  | DK4: =地市名称!#REF! ->  | DL4: =地市名称!#REF! ->  | DM4: =地市名称!#REF! ->  | DN4: =地市名称!#REF! ->  | DO4: =地市名称!#REF! ->  | DP4: =地市名称!A99 -> 文 员 | DQ4: =地市名称!D99 -> 261 | DR4: =地市名称!E99 -> 522 | DS4: =地市名称!A100 -> 会计 | DT4: =地市名称!D100 -> 331 | DU4: =地市名称!E100 -> 663 | DV4: =地市名称!A101 -> 驾驶员 | DW4: =地市名称!D101 -> 83 | DX4: =地市名称!E101 -> 167 | DY4: =地市名称!A102 -> 跟单员 | DZ4: =地市名称!D102 -> 75 | EA4: =地市名称!E102 -> 150 | EB4: =地市名称!A103 -> 电工 | EC4: =地市名称!D103 -> 65 | ED4: =地市名称!E103 -> 130 | EE4: =地市名称!A104 -> 0 | EF4: =地市名称!D104 -> 0 | EG4: =地市名称!E104 -> 0 | EH4: =地市名称!A105 -> 0 | EI4: =地市名称!D105 -> 0 | EJ4: =地市名称!E105 -> 0 | EK4: =地市名称!A106 -> 0 | EL4: =地市名称!D106 -> 0 | EM4: =地市名称!E106 -> 0 | EN4: =地市名称!A107 -> 0 | EO4: =地市名称!D107 -> 0 | EP4: =地市名称!E107 -> 0 | EQ4: =地市名称!A108 -> 0 | ER4: =地市名称!D108 -> 0 | ES4: =地市名称!E108 -> 0 | ET4: =地市名称!A109 -> 0 | EU4: =地市名称!D109 -> 0 | EV4: =地市名称!E109 -> 0 | EW4: =地市名称!A110 -> 0 | EX4: =地市名称!D110 -> 0 | EY4: =地市名称!E110 -> 0 | EZ4: =地市名称!A111 -> 0 | FA4: =地市名称!D111 -> 0 | FB4: =地市名称!E111 -> 0 | FC4: =地市名称!A112 -> 0 | FD4: =地市名称!D112 -> 0 | FE4: =地市名称!E112 -> 0 | FF4: =地市名称!A113 -> 0 | FG4: =地市名称!D113 -> 0 | FH4: =地市名称!D113 -> 0 | FI4: =地市名称!A114 -> 0 | FJ4: =地市名称!D114 -> 0 | FK4: =地市名称!D114 -> 0 | FL4: =地市名称!A115 -> 0 | FM4: =地市名称!D115 -> 0 | FN4: =地市名称!E115 -> 0 | FO4: =地市名称!A116 -> 0 | FP4: =地市名称!D116 -> 0 | FQ4: =地市名称!E116 -> 0 | FR4: =地市名称!#REF! ->  | FS4: =地市名称!#REF! ->  | FT4: =地市名称!#REF! ->  | FU4: =地市名称!#REF! ->  | FV4: =地市名称!#REF! ->  | FW4: =地市名称!#REF! ->  | FX4: =地市名称!C123 -> 1408 | FY4: =地市名称!C124 -> 1260 | FZ4: =地市名称!C125 -> 513 | GA4: =地市名称!C126 -> 691 | GB4: =地市名称!C127 -> 56 | GC4: =地市名称!C128 -> 803 | GD4: =地市名称!C129 -> 2214 | GE4: =地市名称!C130 -> 12 | GF4: =地市名称!C137 -> -- | GG4: =地市名称!E137 -> 3275 | GH4: =地市名称!C138 -> -- | GI4: =地市名称!E138 -> 2422 | GJ4: =地市名称!C139 -> -- | GK4: =地市名称!C148 -> 2591 | GL4: =地市名称!E148 -> 2293 | GM4: =地市名称!C149 -> 1995 | GN4: =地市名称!E149 -> 1592 | GO4: =地市名称!C150 -> 1297 | GP4: =地市名称!E150 -> 1024 | GQ4: =地市名称!C151 -> 953 | GR4: =地市名称!E151 -> 788 | GS4: =地市名称!C152 -> 557 | GT4: =地市名称!C159 -> 1577 | GU4: =地市名称!E159 -> 1470 | GV4: =地市名称!C160 -> 2424 | GW4: =地市名称!E160 -> 1974 | GX4: =地市名称!E161 -> 1153 | GY4: =地市名称!E161 -> 1153 | GZ4: =地市名称!C162 -> 2108 | HA4: =地市名称!E162 -> 1879 | HB4: =地市名称!C163 -> 492 | HC4: =地市名称!E163 -> 373 | HD4: =地市名称!C164 -> 3 | HE4: =地市名称!E164 -> 1 | HF4: =地市名称!C165 -> 789 | HG4: =地市名称!C172 -> 516 | HH4: =地市名称!E172 -> 358 | HI4: =地市名称!C173 -> 294 | HJ4: =地市名称!E173 -> 166 | HK4: =地市名称!C174 -> 6 | HL4: =地市名称!E174 -> 4 | HM4: =地市名称!C175 -> 4 | HN4: =地市名称!E175 -> 1 | HO4: =地市名称!C176 -> 5 | HP4: =地市名称!E176 -> 2 | HQ4: =地市名称!C177 -> 521 | HR4: =地市名称!E177 -> 362 | HS4: =地市名称!C178 -> 14 | HT4: =地市名称!E178 -> 9 | HU4: =地市名称!C179 -> 3 | HV4: =地市名称!E179 -> 1 | HW4: =地市名称!E180 -> 4794 | HX4: =地市名称!C181 -> 6030
